[Event "EIRCC 2019"]
[Site "Tallinn"]
[Date "2019.12.06"]
[Round "12.33"]
[White "Degtiarev, Evgeny"]
[Black "Wallin, Aleksi"]
[Result "1/2-1/2"]
[ECO "D17"]
[WhiteElo "2367"]
[BlackElo "2219"]
[Annotator "NA"]
[PlyCount "81"]
[EventDate "2019.12.05"]
[EventType "swiss"]
[EventCountry "EST"]
[SourceTitle "playchess.com"]
[Source "ChessBase"]
[SourceQuality "1"]
[TimeControl "900+10"]

1. d4 {[%emt 0:00:00]} d5 {[%emt 0:00:00]} 2. c4 {[%emt 0:00:00]} c6 {[%emt 0:00:00]} 3. Nf3 {[%emt 0:00:07]} Nf6 {[%emt 0:00:00]} 4. Nc3 {[%emt 0:00:05]} dxc4 {[%emt 0:00:05]} 5. a4 {[%emt 0:00:03]} Bf5 {[%emt 0:00:11]} 6. Ne5 {[%emt 0:00:22]} Nbd7 {[%emt 0:00:23]} 7. Nxc4 {[%emt 0:00:07]} Nb6 {[%emt 0:00:19]} 8. Ne5 {[%emt 0:00:03]} a5 {[%emt 0:00:18]} 9. g3 {[%emt 0:00:32]} e6 {[%emt 0:00:52]} 10. Bg2 {[%emt 0:00:04]} Bb4 {[%emt 0:02:21]} 11. O-O {[%emt 0:00:10]} O-O {[%emt 0:00:55]} 12. e3 {[%emt 0:00:24]} h6 {[%emt 0:00:05]} 13. Qb3 {[%emt 0:01:07]} Nfd7 {[%emt 0:01:44]} 14. Nxd7 {[%emt 0:00:51]} Nxd7 {[%emt 0:02:03]} 15. Na2 {[%emt 0:00:08]} Qb6 {[%emt 0:02:44]} 16. Nxb4 {[%emt 0:00:12]} c5 {[%emt 0:02:20]} 17. e4 {[%emt 0:03:31]} Bg6 {[%emt 0:00:12]} 18. d5 {[%emt 0:00:02]} Qxb4 {[%emt 0:00:56]} 19. Qxb4 {[%emt 0:00:45]} axb4 {[%emt 0:00:11]} 20. Bf4 {[%emt 0:00:10]} Nf6 {[%emt 0:01:28]} 21. Rfe1 {[%emt 0:01:09]} Rfe8 {[%emt 0:00:04]} 22. Bc7 {[%emt 0:00:36]} exd5 {[%emt 0:00:30]} 23. exd5 {[%emt 0:00:02]} Rxe1+ {[%emt 0:00:04]} 24. Rxe1 {[%emt 0:00:03]} Rxa4 {[%emt 0:00:12]} 25. d6 {[%emt 0:00:12]} Bf5 {[%emt 0:00:15]} 26. Bxb7 {[%emt 0:00:23]} c4 {[%emt 0:00:25]} 27. Rc1 {[%emt 0:00:52]} c3 {[%emt 0:00:07]} 28. b3 {[%emt 0:00:33]} Ra2 {[%emt 0:00:25]} 29. d7 {[%emt 0:02:56]} Bxd7 {[%emt 0:00:14]} 30. Bd6 {[%emt 0:00:01]} Rb2 {[%emt 0:00:21]} 31. Ba6 {[%emt 0:02:10]} Rxb3 {[%emt 0:00:10]} 32. Bd3 {[%emt 0:00:02]} Be6 {[%emt 0:00:12]} 33. Ra1 {[%emt 0:00:07]} Ra3 {[%emt 0:00:01]} 34. Rxa3 {[%emt 0:00:07]} bxa3 35. Bxa3 {[%emt 0:00:01]} Nd7 {[%emt 0:00:21]} 36. f4 {[%emt 0:02:04]} Bb3 {[%emt 0:00:04]} 37. Kf2 {[%emt 0:00:06]} Nb6 {[%emt 0:00:08]} 38. Ke3 {[%emt 0:00:10]} Nc4+ {[%emt 0:00:17]} 39. Bxc4 {[%emt 0:00:05]} Bxc4 {[%emt 0:00:01]} 40. Kd4 {[%emt 0:00:09]} Be6 41. Ke4 1/2-1/2

[Event "EIRCC 2019"]
[Site "Tallinn"]
[Date "2019.12.06"]
[Round "12.34"]
[White "Maier, Christian"]
[Black "Chibukhchyan, Erik"]
[Result "0-1"]
[ECO "C47"]
[WhiteElo "2363"]
[BlackElo "2211"]
[Annotator "NA"]
[PlyCount "120"]
[EventDate "2019.12.05"]
[EventType "swiss"]
[EventCountry "EST"]
[SourceTitle "playchess.com"]
[Source "ChessBase"]
[SourceQuality "1"]
[TimeControl "900+10"]

1. e4 {[%emt 0:00:00]} e5 {[%emt 0:00:00]} 2. Nf3 {[%emt 0:00:00]} Nc6 {[%emt 0:00:00]} 3. Nc3 {[%emt 0:00:00]} Nf6 {[%emt 0:00:00]} 4. d4 {[%emt 0:00:03]} Bb4 {[%emt 0:00:00]} 5. d5 {[%emt 0:01:06]} Bxc3+ {[%emt 0:00:04]} 6. bxc3 {[%emt 0:00:02]} Nb8 {[%emt 0:00:02]} 7. Nxe5 {[%emt 0:00:24]} Qe7 {[%emt 0:01:44]} 8. Qd4 {[%emt 0:00:54]} d6 {[%emt 0:00:51]} 9. Bb5+ {[%emt 0:00:39]} Kd8 {[%emt 0:00:02]} 10. Nf3 {[%emt 0:00:29]} Qxe4+ {[%emt 0:00:41]} 11. Qxe4 {[%emt 0:00:57]} Nxe4 {[%emt 0:00:02]} 12. Bb2 {[%emt 0:00:06]} Nd7 {[%emt 0:00:59]} 13. Bd3 {[%emt 0:00:04]} Ndc5 {[%emt 0:00:04]} 14. c4 {[%emt 0:00:04]} f6 {[%emt 0:00:04]} 15. O-O {[%emt 0:00:42]} Re8 {[%emt 0:01:15]} 16. Rfe1 {[%emt 0:00:03]} Nxd3 {[%emt 0:00:16]} 17. cxd3 {[%emt 0:00:02]} Nc5 {[%emt 0:00:01]} 18. Rxe8+ {[%emt 0:01:41]} Kxe8 {[%emt 0:00:02]} 19. Ne1 {[%emt 0:00:04]} Bf5 {[%emt 0:00:02]} 20. Rd1 {[%emt 0:00:02]} Kf7 {[%emt 0:00:13]} 21. f3 {[%emt 0:00:05]} Re8 {[%emt 0:00:03]} 22. Kf2 {[%emt 0:00:01]} Rxe1 {[%emt 0:00:36]} 23. Kxe1 {[%emt 0:01:03]} Nxd3+ {[%emt 0:00:03]} 24. Kd2 {[%emt 0:00:20]} Nxb2 {[%emt 0:00:02]} 25. Rc1 {[%emt 0:00:01]} Nd3 {[%emt 0:00:10]} 26. Rc3 {[%emt 0:00:14]} Nc5 {[%emt 0:00:03]} 27. Re3 {[%emt 0:00:19]} h5 {[%emt 0:00:11]} 28. Kc3 {[%emt 0:00:08]} a5 {[%emt 0:00:09]} 29. Kd4 {[%emt 0:00:07]} g5 {[%emt 0:00:12]} 30. Ra3 {[%emt 0:00:06]} b6 {[%emt 0:00:06]} 31. Re3 {[%emt 0:00:02]} Bb1 {[%emt 0:00:16]} 32. Re2 {[%emt 0:00:02]} h4 {[%emt 0:00:13]} 33. g3 {[%emt 0:00:07]} h3 {[%emt 0:01:06]} 34. Rf2 {[%emt 0:01:00]} Bf5 {[%emt 0:00:38]} 35. g4 {[%emt 0:00:13]} Bd7 {[%emt 0:00:03]} 36. Rf1 {[%emt 0:00:13]} f5 {[%emt 0:00:05]} 37. Rg1 {[%emt 0:00:03]} Kf6 {[%emt 0:00:05]} 38. Rg3 {[%emt 0:00:05]} f4 {[%emt 0:04:38]} 39. Rxh3 {[%emt 0:00:03]} Ba4 {[%emt 0:00:03]} 40. Rh6+ {[%emt 0:00:47]} Kg7 {[%emt 0:00:05]} 41. Rh5 {[%emt 0:00:01]} Kg6 {[%emt 0:00:08]} 42. h4 {[%emt 0:00:10]} gxh4 {[%emt 0:00:01]} 43. Rxh4 {[%emt 0:00:14]} Bd1 {[%emt 0:00:02]} 44. Rh3 {[%emt 0:00:15]} Be2 {[%emt 0:00:11]} 45. Rh5 {[%emt 0:00:06]} Bxf3 {[%emt 0:00:31]} 46. Rf5 {[%emt 0:00:01]} Bxg4 {[%emt 0:00:03]} 47. Rxf4 {[%emt 0:00:01]} Bf5 {[%emt 0:00:03]} 48. Rf2 {[%emt 0:00:09]} Bb1 {[%emt 0:00:19]} 49. Rb2 {[%emt 0:00:08]} Bf5 {[%emt 0:00:06]} 50. Rf2 {[%emt 0:00:01]} Nd7 {[%emt 0:00:08]} 51. Rg2+ {[%emt 0:00:17]} Kf7 {[%emt 0:00:14]} 52. Rf2 {[%emt 0:00:24]} Kf6 {[%emt 0:00:01]} 53. a3 {[%emt 0:00:25]} Ne5 {[%emt 0:00:07]} 54. Rf1 {[%emt 0:00:16]} Kg6 {[%emt 0:00:05]} 55. Rg1+ {[%emt 0:00:02]} Bg4 {[%emt 0:00:06]} 56. Rf1 {[%emt 0:00:24]} Kg7 {[%emt 0:00:22]} 57. Rf2 {[%emt 0:00:21]} Bh5 {[%emt 0:00:30]} 58. Rg2+ {[%emt 0:00:25]} Kf7 {[%emt 0:00:09]} 59. Rf2+ {[%emt 0:00:02]} Ke7 {[%emt 0:00:03]} 60. Rg2 {[%emt 0:00:14]} Bg6 0-1

[Event "EIRCC 2019"]
[Site "Tallinn"]
[Date "2019.12.06"]
[Round "13.4"]
[White "Riazantsev, Alexander"]
[Black "Lysyj, Igor"]
[Result "1-0"]
[ECO "D37"]
[WhiteElo "2594"]
[BlackElo "2599"]
[Annotator "ChessBase"]
[PlyCount "55"]
[EventDate "2019.12.05"]
[EventType "swiss"]
[EventCountry "EST"]
[SourceTitle "playchess.com"]
[Source "ChessBase"]
[SourceQuality "1"]
[TimeControl "900+10"]

1. d4 {[%emt 0:00:00]} Nf6 {[%emt 0:00:00]} 2. c4 {[%emt 0:00:00]} e6 {[%emt 0:00:00]} 3. Nf3 {[%emt 0:00:00]} d5 {[%emt 0:00:00]} 4. Nc3 {[%emt 0:00:00]} dxc4 {[%emt 0:00:00]} 5. e4 {[%emt 0:00:00]} Bb4 {[%emt 0:00:00]} 6. Bxc4 {[%emt 0:00:00]} Nxe4 {[%emt 0:00:00]} 7. O-O {[%emt 0:00:03]} Nxc3 {[%emt 0:00:02]} 8. bxc3 {[%emt 0:00:01]} Bd6 {[%emt 0:00:01]} 9. Bd3 {[%emt 0:00:22]} Nd7 {[%emt 0:00:04]} 10. Qe2 {[%emt 0:00:01]} O-O {[%emt 0:00:09]} 11. Qe4 {[%emt 0:00:04]} g6 {[%emt 0:00:56]} 12. Bg5 {[%emt 0:03:12]} Be7 {[%emt 0:00:13]} 13. Bh6 {[%emt 0:00:01]} Re8 {[%emt 0:00:12]} 14. Rad1 {[%emt 0:01:03]} Nf6 {[%emt 0:01:09]} 15. Qe2 {[%emt 0:00:00]} Bf8 {[%emt 0:01:45]} 16. Bg5 {[%emt 0:01:05]} h6 {[%emt 0:00:07]} 17. Bh4 {[%emt 0:00:28]} Bg7 {[%emt 0:00:48]} 18. Ne5 {[%emt 0:00:03]} Bd7 {[%emt 0:00:12]} 19. Qf3 {[%emt 0:02:20]} Ba4 {[%emt 0:00:16]} 20. Rb1 {[%emt 0:00:24]} g5 {[%emt 0:03:44]} 21. Bg3 {[%emt 0:00:02]} Qd5 {[%emt 0:00:01]} 22. Qe2 {[%emt 0:01:26]} c5 {[%emt 0:01:05]} 23. f4 {[%emt 0:00:03]} Bc6 {[%emt 0:01:43]} 24. fxg5 {[%emt 0:01:04]} hxg5 {[%emt 0:00:01]} 25. Nxc6 {[%emt 0:00:28]} bxc6 {[%emt 0:00:27]} 26. Be5 {[%emt 0:00:01]} c4 {[%emt 0:01:25]} 27. Bxc4 {[%emt 0:00:42]} Qe4 {[%emt 0:00:01]} 28. Bxf6 {[%emt 0:00:07]} 1-0

[Event "EIRCC 2019"]
[Site "Tallinn"]
[Date "2019.12.06"]
[Round "13.6"]
[White "Postny, Evgeny"]
[Black "Usmanov, Vasily"]
[Result "1/2-1/2"]
[ECO "E10"]
[WhiteElo "2598"]
[BlackElo "2428"]
[Annotator "ChessBase"]
[PlyCount "118"]
[EventDate "2019.12.05"]
[EventType "swiss"]
[EventCountry "EST"]
[SourceTitle "playchess.com"]
[Source "ChessBase"]
[SourceQuality "1"]
[TimeControl "900+10"]

1. d4 {[%emt 0:00:00]} Nf6 {[%emt 0:00:00]} 2. c4 {[%emt 0:00:00]} e6 {[%emt 0:00:00]} 3. Nf3 {[%emt 0:00:00]} a6 {[%emt 0:00:00]} 4. Nc3 {[%emt 0:00:07]} d5 {[%emt 0:00:00]} 5. cxd5 {[%emt 0:00:07]} exd5 {[%emt 0:00:00]} 6. Bg5 {[%emt 0:00:02]} Be6 {[%emt 0:00:15]} 7. e3 {[%emt 0:00:04]} Nbd7 {[%emt 0:00:03]} 8. h3 {[%emt 0:00:02]} Bd6 {[%emt 0:00:18]} 9. Bd3 {[%emt 0:00:03]} c6 {[%emt 0:00:09]} 10. Bf4 {[%emt 0:00:05]} Qb8 {[%emt 0:00:01]} 11. Qd2 {[%emt 0:00:09]} Nh5 {[%emt 0:00:16]} 12. Bxd6 {[%emt 0:00:05]} Qxd6 {[%emt 0:00:02]} 13. O-O-O {[%emt 0:01:21]} O-O-O {[%emt 0:00:12]} 14. Kb1 {[%emt 0:00:13]} Kb8 {[%emt 0:00:01]} 15. Rc1 {[%emt 0:00:06]} Nb6 {[%emt 0:01:49]} 16. Qc2 {[%emt 0:00:49]} Nf6 {[%emt 0:00:08]} 17. Nd2 {[%emt 0:00:04]} Rc8 {[%emt 0:01:17]} 18. Na4 {[%emt 0:01:18]} Nxa4 {[%emt 0:00:11]} 19. Qxa4 {[%emt 0:00:02]} Nd7 {[%emt 0:00:52]} 20. Nb3 {[%emt 0:00:19]} Rc7 {[%emt 0:01:44]} 21. Rc3 {[%emt 0:01:01]} g6 {[%emt 0:02:58]} 22. Rhc1 {[%emt 0:00:21]} Bf5 {[%emt 0:00:34]} 23. Bxf5 {[%emt 0:00:38]} Nb6 {[%emt 0:00:15]} 24. Qa5 {[%emt 0:00:05]} Nc4 {[%emt 0:00:01]} 25. Qc5 {[%emt 0:02:04]} Qxc5 {[%emt 0:00:02]} 26. dxc5 {[%emt 0:00:02]} gxf5 {[%emt 0:00:02]} 27. Nd4 {[%emt 0:00:10]} Rg8 {[%emt 0:00:31]} 28. g3 {[%emt 0:00:04]} Nd2+ {[%emt 0:00:07]} 29. Ka1 {[%emt 0:00:06]} Ne4 {[%emt 0:00:22]} 30. R3c2 {[%emt 0:00:02]} Rg5 {[%emt 0:00:15]} 31. h4 {[%emt 0:00:08]} Rh5 {[%emt 0:00:04]} 32. b4 {[%emt 0:02:02]} Rc8 {[%emt 0:00:36]} 33. a4 {[%emt 0:00:19]} Kc7 {[%emt 0:00:01]} 34. Kb2 {[%emt 0:00:35]} Ra8 {[%emt 0:00:28]} 35. Ra1 {[%emt 0:00:19]} Nf6 {[%emt 0:00:15]} 36. Kc3 {[%emt 0:01:59]} Nd7 {[%emt 0:00:11]} 37. Kb3 {[%emt 0:00:57]} Nf8 {[%emt 0:00:04]} 38. Raa2 {[%emt 0:00:54]} Ne6 {[%emt 0:00:03]} 39. Nf3 {[%emt 0:00:20]} Rh6 {[%emt 0:00:25]} 40. Ne5 {[%emt 0:00:08]} Rf6 {[%emt 0:01:23]} 41. Nf3 {[%emt 0:00:08]} h5 {[%emt 0:00:24]} 42. Rc3 {[%emt 0:00:07]} Rg6 {[%emt 0:00:09]} 43. Ne5 {[%emt 0:00:05]} Rg7 {[%emt 0:00:04]} 44. Rd2 {[%emt 0:00:08]} Re8 {[%emt 0:00:19]} 45. Nf3 {[%emt 0:00:10]} Rg4 {[%emt 0:00:07]} 46. Nd4 {[%emt 0:01:02]} Nxd4+ {[%emt 0:00:02]} 47. Rxd4 {[%emt 0:00:01]} Ree4 {[%emt 0:01:00]} 48. Rcd3 {[%emt 0:00:08]} Kd7 {[%emt 0:00:11]} 49. b5 {[%emt 0:00:24]} axb5 {[%emt 0:00:27]} 50. axb5 {[%emt 0:00:02]} Rxd4 {[%emt 0:00:01]} 51. Rxd4 {[%emt 0:00:10]} Rxd4 {[%emt 0:00:23]} 52. exd4 {[%emt 0:00:02]} cxb5 {[%emt 0:00:48]} 53. Kb4 {[%emt 0:00:01]} Kc6 {[%emt 0:00:03]} 54. Ka5 {[%emt 0:00:02]} f4 {[%emt 0:00:04]} 55. gxf4 {[%emt 0:00:14]} f5 {[%emt 0:00:03]} 56. f3 {[%emt 0:00:02]} b4 {[%emt 0:00:07]} 57. Kxb4 {[%emt 0:00:01]} b6 {[%emt 0:00:00]} 58. cxb6 {[%emt 0:00:06]} Kxb6 {[%emt 0:00:01]} 59. Ka4 {[%emt 0:00:04]} Ka6 {[%emt 0:00:01]} 1/2-1/2

[Event "EIRCC 2019"]
[Site "Tallinn"]
[Date "2019.12.06"]
[Round "13.7"]
[White "Dordzhieva, Dinara"]
[Black "Aleksandrov, Aleksej"]
[Result "1/2-1/2"]
[ECO "A13"]
[WhiteElo "2310"]
[BlackElo "2576"]
[Annotator "ChessBase"]
[PlyCount "254"]
[EventDate "2019.12.05"]
[EventType "swiss"]
[EventCountry "EST"]
[SourceTitle "playchess.com"]
[Source "ChessBase"]
[SourceQuality "1"]
[TimeControl "900+10"]

1. Nf3 {[%emt 0:00:00]} Nf6 {[%emt 0:00:00]} 2. c4 {[%emt 0:00:00]} e6 {[%emt 0:00:00]} 3. g3 {[%emt 0:00:00]} d5 {[%emt 0:00:00]} 4. Bg2 {[%emt 0:00:09]} dxc4 {[%emt 0:00:00]} 5. Qa4+ {[%emt 0:00:04]} Nbd7 {[%emt 0:00:03]} 6. Qxc4 {[%emt 0:00:03]} c5 {[%emt 0:00:02]} 7. Qc2 {[%emt 0:00:10]} b6 {[%emt 0:00:14]} 8. O-O {[%emt 0:00:16]} Bb7 {[%emt 0:00:01]} 9. Nc3 {[%emt 0:01:08]} Rc8 {[%emt 0:00:08]} 10. d3 {[%emt 0:00:26]} Be7 {[%emt 0:00:38]} 11. b3 {[%emt 0:00:02]} O-O {[%emt 0:00:11]} 12. Bb2 {[%emt 0:00:01]} Nb8 {[%emt 0:00:16]} 13. Rac1 {[%emt 0:01:07]} Nc6 {[%emt 0:00:08]} 14. Qb1 {[%emt 0:00:02]} Qd7 {[%emt 0:00:42]} 15. Rfd1 {[%emt 0:00:34]} Rfd8 {[%emt 0:01:14]} 16. Qa1 {[%emt 0:01:38]} Bf8 {[%emt 0:01:18]} 17. Nb1 {[%emt 0:01:20]} Nd5 {[%emt 0:00:48]} 18. Ne5 {[%emt 0:00:04]} Nxe5 {[%emt 0:00:04]} 19. Bxe5 {[%emt 0:00:02]} Nb4 {[%emt 0:01:02]} 20. Bxb7 {[%emt 0:00:55]} Qxb7 {[%emt 0:00:02]} 21. Nd2 {[%emt 0:00:15]} Rd7 {[%emt 0:00:45]} 22. Bb2 {[%emt 0:00:40]} Qd5 {[%emt 0:00:32]} 23. Nf3 {[%emt 0:01:03]} f6 {[%emt 0:01:09]} 24. Bc3 {[%emt 0:02:18]} Nc6 {[%emt 0:00:04]} 25. Qb2 {[%emt 0:00:02]} Rcd8 {[%emt 0:00:12]} 26. Nd2 {[%emt 0:02:47]} Qh5 {[%emt 0:00:12]} 27. Nf3 {[%emt 0:00:09]} e5 {[%emt 0:02:22]} 28. Re1 {[%emt 0:00:02]} Qh3 {[%emt 0:00:47]} 29. Qc2 {[%emt 0:00:17]} Kh8 {[%emt 0:00:20]} 30. Bb2 {[%emt 0:00:40]} Nb4 {[%emt 0:00:21]} 31. Qb1 {[%emt 0:00:01]} a6 {[%emt 0:00:44]} 32. Bc3 {[%emt 0:00:05]} Nd5 {[%emt 0:00:20]} 33. Bb2 {[%emt 0:00:01]} Ne7 {[%emt 0:00:11]} 34. Qc2 {[%emt 0:00:06]} Nd5 {[%emt 0:00:46]} 35. a3 {[%emt 0:00:09]} b5 {[%emt 0:00:07]} 36. Qb1 {[%emt 0:00:15]} Qe6 {[%emt 0:00:11]} 37. Qc2 {[%emt 0:00:02]} Rc7 {[%emt 0:00:16]} 38. Qb1 {[%emt 0:00:44]} Rdc8 {[%emt 0:00:08]} 39. Nd2 {[%emt 0:00:05]} Qd7 {[%emt 0:00:30]} 40. Qa2 {[%emt 0:00:23]} Ra8 {[%emt 0:00:11]} 41. Rc2 {[%emt 0:00:32]} a5 {[%emt 0:00:02]} 42. Rec1 {[%emt 0:00:13]} a4 {[%emt 0:00:14]} 43. Ne4 {[%emt 0:00:27]} axb3 {[%emt 0:00:09]} 44. Qxb3 {[%emt 0:00:02]} Rac8 {[%emt 0:00:04]} 45. Ba1 {[%emt 0:00:21]} Nb6 {[%emt 0:00:24]} 46. Bc3 {[%emt 0:00:22]} Na4 {[%emt 0:02:13]} 47. Ba5 {[%emt 0:00:01]} Rb7 {[%emt 0:00:30]} 48. Bd2 {[%emt 0:00:05]} c4 {[%emt 0:00:29]} 49. Qa2 {[%emt 0:00:37]} Nb6 {[%emt 0:00:33]} 50. dxc4 {[%emt 0:00:42]} Nxc4 {[%emt 0:00:04]} 51. Bb4 {[%emt 0:00:05]} Qf5 {[%emt 0:01:00]} 52. Bxf8 {[%emt 0:00:43]} Qxe4 {[%emt 0:00:08]} 53. Bb4 {[%emt 0:00:03]} h5 {[%emt 0:00:04]} 54. Qb3 {[%emt 0:00:25]} Rd8 {[%emt 0:00:15]} 55. Qf3 {[%emt 0:00:49]} Qxf3 {[%emt 0:00:03]} 56. exf3 {[%emt 0:00:00]} Ra7 {[%emt 0:00:17]} 57. Rc3 {[%emt 0:00:12]} Rd5 {[%emt 0:00:05]} 58. Kg2 {[%emt 0:00:11]} Kh7 {[%emt 0:00:02]} 59. Rb3 {[%emt 0:00:12]} Kg6 {[%emt 0:00:07]} 60. Rcb1 {[%emt 0:00:20]} Ra4 {[%emt 0:00:09]} 61. Rc1 {[%emt 0:00:17]} Kf5 {[%emt 0:00:02]} 62. Rcb1 {[%emt 0:00:02]} Ke6 {[%emt 0:00:02]} 63. Bf8 {[%emt 0:00:04]} Nd2 {[%emt 0:00:06]} 64. Rxb5 {[%emt 0:00:20]} Nxb1 {[%emt 0:00:01]} 65. Rxb1 {[%emt 0:00:03]} Kf7 {[%emt 0:00:14]} 66. Bb4 {[%emt 0:00:02]} Ra7 {[%emt 0:00:05]} 67. Rc1 {[%emt 0:00:01]} Rd3 {[%emt 0:00:02]} 68. Rc8 {[%emt 0:00:04]} Rb3 {[%emt 0:00:04]} 69. g4 {[%emt 0:00:16]} h4 {[%emt 0:00:13]} 70. Rf8+ {[%emt 0:00:25]} Kg6 {[%emt 0:00:07]} 71. Rh8 {[%emt 0:00:04]} Rc7 {[%emt 0:00:02]} 72. Rxh4 {[%emt 0:00:09]} Rc8 {[%emt 0:00:08]} 73. Rh3 {[%emt 0:00:21]} Rb2 {[%emt 0:00:06]} 74. f4 {[%emt 0:00:22]} exf4 {[%emt 0:00:16]} 75. Rf3 {[%emt 0:00:02]} Rc4 {[%emt 0:00:03]} 76. h3 {[%emt 0:00:03]} Ra2 {[%emt 0:00:06]} 77. Bd6 {[%emt 0:00:04]} Kg5 {[%emt 0:00:05]} 78. Rd3 {[%emt 0:00:04]} Rcc2 {[%emt 0:00:32]} 79. Rf3 {[%emt 0:00:01]} Rc4 {[%emt 0:00:02]} 80. Rd3 {[%emt 0:00:00]} f5 {[%emt 0:00:10]} 81. Rd5 {[%emt 0:00:09]} g6 {[%emt 0:00:06]} 82. Be7+ {[%emt 0:00:25]} Kh6 {[%emt 0:00:02]} 83. gxf5 {[%emt 0:00:06]} gxf5 {[%emt 0:00:07]} 84. Rxf5 {[%emt 0:00:08]} Kg6 85. Rf6+ {[%emt 0:00:08]} Kg7 {[%emt 0:00:08]} 86. Rf5 {[%emt 0:00:05]} Rd4 {[%emt 0:00:30]} 87. Bb4 {[%emt 0:00:22]} Kg6 {[%emt 0:00:03]} 88. Rf8 {[%emt 0:00:18]} Rc2 {[%emt 0:00:05]} 89. Rg8+ {[%emt 0:00:28]} Kh7 {[%emt 0:00:03]} 90. Rf8 {[%emt 0:00:04]} Rcc4 {[%emt 0:00:02]} 91. Rf7+ {[%emt 0:00:10]} Kg6 {[%emt 0:00:01]} 92. Rf8 {[%emt 0:00:03]} Rd3 {[%emt 0:00:06]} 93. Be7 {[%emt 0:00:08]} Kg7 {[%emt 0:00:06]} 94. Rf5 {[%emt 0:00:03]} Re4 {[%emt 0:00:08]} 95. Bb4 {[%emt 0:00:21]} Kg6 {[%emt 0:00:08]} 96. Rf8 {[%emt 0:00:01]} Rc4 {[%emt 0:00:06]} 97. Be7 {[%emt 0:00:06]} Rd5 {[%emt 0:00:09]} 98. Bb4 {[%emt 0:00:11]} Kg7 {[%emt 0:00:02]} 99. Re8 {[%emt 0:00:24]} Rd3 {[%emt 0:00:09]} 100. Re6 {[%emt 0:00:05]} Kf7 {[%emt 0:00:16]} 101. Rh6 {[%emt 0:00:06]} Rb3 {[%emt 0:00:09]} 102. Rd6 {[%emt 0:00:04]} Rb2 {[%emt 0:00:05]} 103. Rd8 {[%emt 0:00:16]} Kg7 {[%emt 0:00:02]} 104. Rd7+ {[%emt 0:00:02]} Kg6 {[%emt 0:00:02]} 105. Rd6+ {[%emt 0:00:01]} Kf5 {[%emt 0:00:03]} 106. Rd5+ {[%emt 0:00:36]} Ke4 {[%emt 0:00:03]} 107. Rd8 {[%emt 0:00:26]} Rcc2 {[%emt 0:00:15]} 108. Re8+ {[%emt 0:00:01]} Kd5 {[%emt 0:00:02]} 109. Be1 {[%emt 0:00:18]} Ra2 {[%emt 0:00:08]} 110. Kf3 {[%emt 0:00:09]} Rc4 {[%emt 0:00:41]} 111. Bb4 {[%emt 0:00:02]} Rb2 {[%emt 0:00:01]} 112. h4 {[%emt 0:00:19]} Rb3+ {[%emt 0:00:01]} 113. Kg4 {[%emt 0:00:01]} Rb2 {[%emt 0:00:10]} 114. Kf3 {[%emt 0:00:09]} Rb1 {[%emt 0:00:09]} 115. Rf8 {[%emt 0:00:22]} Ke5 {[%emt 0:00:29]} 116. Re8+ {[%emt 0:00:01]} Kd5 {[%emt 0:00:17]} 117. Rf8 {[%emt 0:00:01]} Rb3+ {[%emt 0:01:05]} 118. Kg4 {[%emt 0:00:01]} f3+ {[%emt 0:01:39]} 119. Kg5 {[%emt 0:00:05]} Rc2 {[%emt 0:00:02]} 120. Rf5+ {[%emt 0:00:17]} Ke6 {[%emt 0:00:08]} 121. Rf6+ {[%emt 0:00:04]} Kd7 {[%emt 0:00:12]} 122. Rf7+ {[%emt 0:00:01]} Ke8 {[%emt 0:00:11]} 123. Rf8+ {[%emt 0:00:06]} Kd7 {[%emt 0:00:01]} 124. Rf7+ {[%emt 0:00:00]} Kc6 {[%emt 0:00:18]} 125. Rf6+ {[%emt 0:00:01]} Kc7 {[%emt 0:00:32]} 126. Rf7+ {[%emt 0:00:01]} Kc8 {[%emt 0:00:00]} 127. Rf8+ {[%emt 0:00:01]} Kd7 {[%emt 0:00:01]} 1/2-1/2

[Event "EIRCC 2019"]
[Site "Tallinn"]
[Date "2019.12.06"]
[Round "13.8"]
[White "Lintchevski, Daniil"]
[Black "Demidov, Mikhail"]
[Result "1/2-1/2"]
[ECO "B06"]
[WhiteElo "2515"]
[BlackElo "2635"]
[Annotator "RC"]
[PlyCount "98"]
[EventDate "2019.12.05"]
[EventType "swiss"]
[EventCountry "EST"]
[SourceTitle "playchess.com"]
[Source "ChessBase"]
[SourceQuality "1"]
[TimeControl "900+10"]

1. e4 {[%emt 0:00:00]} g6 {[%emt 0:00:00]} 2. d4 {[%emt 0:00:03]} Bg7 {[%emt 0:00:00]} 3. Nf3 {[%emt 0:00:02]} a6 {[%emt 0:00:00]} 4. Bd3 {[%emt 0:00:41]} d6 {[%emt 0:00:00]} 5. c3 {[%emt 0:00:11]} Nc6 {[%emt 0:00:16]} 6. O-O {[%emt 0:00:47]} e5 {[%emt 0:00:02]} 7. dxe5 {[%emt 0:00:28]} dxe5 {[%emt 0:00:05]} 8. Qe2 {[%emt 0:00:15]} Nf6 {[%emt 0:00:07]} 9. Nbd2 {[%emt 0:00:23]} O-O {[%emt 0:00:09]} 10. Nc4 {[%emt 0:00:19]} Qe7 {[%emt 0:00:01]} 11. b3 {[%emt 0:00:17]} Rd8 {[%emt 0:00:10]} 12. Ba3 {[%emt 0:00:10]} Qe8 {[%emt 0:00:02]} 13. Ne3 {[%emt 0:00:19]} h6 {[%emt 0:01:04]} 14. Rad1 {[%emt 0:00:35]} Be6 {[%emt 0:00:08]} 15. Bc2 {[%emt 0:00:53]} Bf8 {[%emt 0:00:14]} 16. Bc1 {[%emt 0:00:19]} Rxd1 {[%emt 0:00:17]} 17. Rxd1 {[%emt 0:00:02]} Rd8 {[%emt 0:00:06]} 18. h3 {[%emt 0:01:13]} Kh7 {[%emt 0:00:48]} 19. Nh2 {[%emt 0:00:06]} Rxd1+ {[%emt 0:00:52]} 20. Qxd1 {[%emt 0:00:02]} Qd8 {[%emt 0:00:25]} 21. Qxd8 {[%emt 0:00:16]} Nxd8 {[%emt 0:00:02]} 22. Nhg4 {[%emt 0:00:08]} Nd7 {[%emt 0:00:27]} 23. Nd5 {[%emt 0:00:31]} Bxd5 {[%emt 0:02:03]} 24. exd5 {[%emt 0:00:01]} f5 {[%emt 0:00:05]} 25. Ne3 {[%emt 0:00:09]} Nf6 {[%emt 0:00:09]} 26. c4 {[%emt 0:00:30]} Bc5 {[%emt 0:00:46]} 27. g4 {[%emt 0:00:19]} f4 {[%emt 0:00:14]} 28. Nf1 {[%emt 0:01:25]} c6 {[%emt 0:00:21]} 29. dxc6 {[%emt 0:00:58]} Nxc6 {[%emt 0:00:01]} 30. Nd2 {[%emt 0:00:02]} Nd4 {[%emt 0:00:28]} 31. Bd1 {[%emt 0:00:30]} Kg7 {[%emt 0:04:15]} 32. Kf1 {[%emt 0:00:04]} Kf7 {[%emt 0:00:09]} 33. Bb2 {[%emt 0:00:35]} Ke6 {[%emt 0:02:00]} 34. Bxd4 {[%emt 0:00:05]} exd4 {[%emt 0:00:09]} 35. Bc2 {[%emt 0:00:27]} g5 {[%emt 0:00:05]} 36. Ke2 {[%emt 0:00:08]} Kd6 {[%emt 0:00:49]} 37. Bf5 {[%emt 0:00:13]} b6 {[%emt 0:01:18]} 38. Kd3 {[%emt 0:00:19]} Ng8 {[%emt 0:00:22]} 39. Nf3 {[%emt 0:00:09]} Ne7 {[%emt 0:00:08]} 40. Be4 {[%emt 0:00:02]} a5 {[%emt 0:00:41]} 41. h4 {[%emt 0:00:09]} gxh4 {[%emt 0:00:55]} 42. Nxh4 {[%emt 0:00:02]} Ke5 {[%emt 0:00:09]} 43. Nf3+ {[%emt 0:00:02]} Kf6 {[%emt 0:00:01]} 44. Bb7 {[%emt 0:00:06]} Ng6 {[%emt 0:00:16]} 45. Be4 {[%emt 0:01:06]} Ne5+ {[%emt 0:00:12]} 46. Nxe5 {[%emt 0:00:02]} Kxe5 {[%emt 0:00:01]} 47. f3 {[%emt 0:00:08]} Bb4 {[%emt 0:00:06]} 48. Bc6 {[%emt 0:00:20]} Bc5 {[%emt 0:00:01]} 49. Be4 {[%emt 0:00:03]} Bb4 {[%emt 0:00:01]} 1/2-1/2